[Event "EYCC Girls U12 2018"]
[Site "Riga"]
[Date "2018.08.29"]
[Round "9"]
[White "Tsirekidze, Barbare"]
[Black "Bashylina, Luisa"]
[Result "0-1"]
[ECO "A00"]
[WhiteElo "1413"]
[BlackElo "1817"]
[Annotator "NA"]
[PlyCount "136"]
[EventDate "2018.08.20"]
[EventType "swiss"]
[EventCountry "LAT"]
[SourceTitle "playchess.com"]
[Source "ChessBase"]
[SourceQuality "1"]
[TimeControl "40/5400+30:1800+30"]

1. e3 {[%emt 0:00:00]} d6 {[%emt 0:01:03]} 2. b3 {[%emt 0:00:00]} Nf6 {[%emt 0:02:32]} 3. Bb2 {[%emt 0:00:40]} g6 {[%emt 0:00:58]} 4. Nf3 {[%emt 0:02:31]} Bg7 {[%emt 0:00:48]} 5. Be2 {[%emt 0:01:49]} O-O {[%emt 0:00:18]} 6. O-O {[%emt 0:00:21]} e5 {[%emt 0:01:04]} 7. d4 {[%emt 0:03:06] A05: Réti Opening: 1 Nf3 Nf6} Nfd7 {[%emt 0:01:09]} 8. c4 {[%emt 0:06:26]} (8. Nbd2 Nc6 9. Re1 Qe7 10. d5 Nd8 11. c4 f5 12. b4 g5 13. Nb3 Nf7 14. Qc2 {0-1 (32) Urbanc,P (2290)-Pichot,A (2568) Tarvisio 2017}) 8... Nc6 {[%emt 0:00:47]} 9. Qd2 $146 {[%emt 0:11:28]} ({Predecessor:} 9. Nc3 f5 10. dxe5 dxe5 11. Qd2 e4 12. Nd4 Nde5 13. Nd5 Qg5 14. Kh1 Nxd4 15. Bxd4 {0-1 (33) Mroweh,H (2095)-Sergeyeva,M (2317) Dubai 2008}) 9... f5 {[%emt 0:10:45]} 10. dxe5 {[%emt 0:10:44]} dxe5 {[%emt 0:09:14]} 11. Rd1 {[%emt 0:09:06]} g5 {[%emt 0:08:24]} (11... Re8 $11) 12. Nc3 {[%emt 0:05:57]} e4 {[%emt 0:15:32]} 13. Ne1 {[%emt 0:07:40]} Nce5 {[%emt 0:04:32]} 14. Ba3 {[%emt 0:11:11]} Re8 {[%emt 0:14:34]} 15. Bh5 {[%emt 0:03:22]} Nf7 {[%emt 0:05:07]} 16. Bxf7+ {[%emt 0:04:59]} Kxf7 {[%emt 0:00:30]} 17. Qd5+ {[%emt 0:01:15]} Kg6 {[%emt 0:01:59]} 18. Bb2 {[%emt 0:07:22]} Qe7 {[%emt 0:02:42]} 19. Qd2 {[%emt 0:02:08]} Nb6 {[%emt 0:01:43]} 20. Rac1 {[%emt 0:03:43]} Be6 {[%emt 0:02:12]} 21. Qe2 {[%emt 0:00:51]} Rad8 {[%emt 0:02:30]} 22. Nc2 {[%emt 0:02:06]} c6 {[%emt 0:03:45]} 23. h3 {[%emt 0:01:26]} Nd7 {[%emt 0:01:14]} 24. Ne1 {[%emt 0:00:05]} Ne5 {[%emt 0:00:48]} 25. f3 {[%emt 0:01:53]} exf3 {[%emt 0:00:50]} 26. Nxf3 {[%emt 0:00:10]} Nxf3+ {[%emt 0:01:04]} 27. Qxf3 {[%emt 0:00:06]} Bc8 {[%emt 0:00:57]} 28. Rxd8 Rxd8 {[%emt 0:00:10]} 29. Rc2 {[%emt 0:02:09]} Rd3 {[%emt 0:01:14]} 30. Nd1 {[%emt 0:00:32]} f4 {[%emt 0:01:25]} 31. Bxg7 {[%emt 0:00:28]} Kxg7 {[%emt 0:00:10]} 32. Rc3 {[%emt 0:00:51]} fxe3 {[%emt 0:03:15]} 33. Nxe3 {[%emt 0:00:47]} Rxc3 {[%emt 0:00:19]} 34. Nf5+ {[%emt 0:00:16]} Bxf5 {[%emt 0:00:07]} 35. Qxc3+ {[%emt 0:00:03]} Qf6 {[%emt 0:00:12]} 36. Qd2 {[%emt 0:00:26]} Kg6 {[%emt 0:01:04]} 37. Qf2 {[%emt 0:01:02]} a6 {[%emt 0:00:48]} 38. Qe2 {[%emt 0:00:42]} Qe6 {[%emt 0:00:21]} 39. Qd2 {[%emt 0:00:21]} Qd7 {[%emt 0:01:42]} 40. Qc3 {[%emt 0:00:00]} c5 {[%emt 0:00:00]} 41. Qe1 {[%emt 0:02:16]} Qd4+ {[%emt 0:04:53]} 42. Kh2 {[%emt 0:00:48]} Kf7 {[%emt 0:02:01]} 43. Qa5 {[%emt 0:02:04]} Qe5+ {[%emt 0:04:33]} 44. Kh1 {[%emt 0:00:20]} Be4 {[%emt 0:01:49]} 45. Qd2 {[%emt 0:04:14]} Qf5 {[%emt 0:01:44]} 46. Kg1 {[%emt 0:01:51]} Bd3 {[%emt 0:01:56]} 47. Qd1 {[%emt 0:02:28]} Kg6 {[%emt 0:03:48]} 48. Qe1 {[%emt 0:01:52]} Qf7 {[%emt 0:03:45]} 49. a3 {[%emt 0:02:56]} b5 {[%emt 0:02:44]} 50. Qa5 {[%emt 0:03:30]} bxc4 {[%emt 0:02:36]} 51. bxc4 {[%emt 0:03:53]} Qxc4 {[%emt 0:02:09]} 52. Qb6+ {[%emt 0:00:13]} Kf5 {[%emt 0:00:24]} 53. Qc6 {[%emt 0:01:57]} Qd4+ {[%emt 0:01:13]} 54. Kh2 {[%emt 0:01:05]} Bc4 {[%emt 0:01:52]} 55. Qc8+ {[%emt 0:01:18]} Ke4 {[%emt 0:01:00]} 56. Qg4+ {[%emt 0:00:33]} Kd3 {[%emt 0:00:16]} 57. Qxg5 {[%emt 0:01:25]} Bd5 {[%emt 0:01:17]} 58. Qc1 {[%emt 0:03:08]} Qe5+ {[%emt 0:00:11]} 59. Kh1 {[%emt 0:00:26]} Qe2 {[%emt 0:01:43]} 60. Qg5 {[%emt 0:00:41]} Qxg2+ {[%emt 0:00:10]} 61. Qxg2 {[%emt 0:00:04]} Bxg2+ {[%emt 0:00:07]} 62. Kxg2 {[%emt 0:00:08]} c4 {[%emt 0:00:02]} 63. Kg3 {[%emt 0:00:15]} c3 {[%emt 0:00:04]} 64. Kg4 {[%emt 0:00:04]} c2 {[%emt 0:00:04]} 65. Kh5 {[%emt 0:00:06]} c1=Q {[%emt 0:00:06]} 66. h4 {[%emt 0:00:04]} Qf4 {[%emt 0:00:30]} 67. a4 {[%emt 0:00:13]} Qf5+ {[%emt 0:00:06]} 68. Kh6 {[%emt 0:00:05]} Qg6# 0-1